fUSD/lending_fUSD_20250119
["ID","MTS","AMOUNT","RATE_DAILY","PERIOD"]
[349591046,1737318309496,10000.0,0.00012,2]
[349591047,1737318309519,10000.0,0.00012,2]
[349591048,1737318309541,10000.0,0.00012,2]
[349591049,1737318309563,10000.0,0.00012,2]
[349591050,1737318309586,10000.0,0.00012,2]
[349591051,1737318309611,10000.0,0.00012,2]
[349591052,1737318309636,299450.0,0.00012,2]
[349591053,1737318309663,5021.0,0.00012,2]
[349591054,1737318309695,424071.77266924,0.00012,2]
[349591055,1737318330193,5570.45453968,0.00011,2]
[349591056,1737318397127,-260.94575388,0.000154,2]
[349591057,1737318397150,-0.00146782,0.00017,2]
[349591058,1737318419661,152.62,0.00010137,2]
[349591061,1737318459886,1440.38,0.0001,2]
[349591062,1737318459913,1471.01405554,0.0001,2]
[349591063,1737318476997,8528.98594446,0.0001,2]
[349591064,1737318477018,10000.0,0.0001,2]
[349591065,1737318477039,10000.0,0.0001,2]
[349591066,1737318477059,1621.9962274,0.0001,2]
[349591067,1737318477825,6310.90733176,0.0001,2]
[349591068,1737318480855,2067.09644084,0.0001,2]
[349591069,1737318480877,10000.0,0.0001,2]
[349591070,1737318480900,10000.0,0.0001,2]
[349591071,1737318480921,10000.0,0.0001,2]
[349591072,1737318480942,10000.0,0.0001,2]
[349591073,1737318480964,10000.0,0.0001,2]
[349591074,1737318480986,10000.0,0.0001,2]
[349591075,1737318481006,10000.0,0.0001,2]
[349591076,1737318481026,10000.0,0.0001,2]
[349591077,1737318481047,10000.0,0.0001,2]
[349591078,1737318481068,10000.0,0.0001,2]
[349591079,1737318481088,10000.0,0.0001,2]
[349591080,1737318481108,10000.0,0.0001,2]
[349591081,1737318481129,10000.0,0.0001,2]
[349591082,1737318481150,10000.0,0.0001,2]
[349591083,1737318481170,10000.0,0.0001,2]
[349591084,1737318481191,10000.0,0.0001,2]
[349591085,1737318481211,10000.0,0.0001,2]
[349591086,1737318481231,10000.0,0.0001,2]
[349591087,1737318481251,10000.0,0.0001,2]
[349591088,1737318481271,10000.0,0.0001,2]
[349591089,1737318481293,10000.0,0.0001,2]
[349591090,1737318481312,10000.0,0.0001,2]
[349591091,1737318481332,10000.0,0.0001,2]
[349591092,1737318481352,10000.0,0.0001,2]
[349591093,1737318481372,10000.0,0.0001,2]
[349591094,1737318481392,10000.0,0.0001,2]
[349591095,1737318481413,10000.0,0.0001,2]
[349591096,1737318481433,10000.0,0.0001,2]
[349591097,1737318481454,10000.0,0.0001,2]
[349591098,1737318481476,10000.0,0.0001,2]
[349591099,1737318481496,10000.0,0.0001,2]
[349591100,1737318481517,10000.0,0.0001,2]
[349591101,1737318481541,10000.0,0.0001,2]
[349591102,1737318481561,10000.0,0.0001,2]
[349591103,1737318481581,312379.05769631,0.0001,2]
[349591106,1737318522077,813.50342,0.0001,2]
[349591107,1737318523872,679.49958344,8e-05,2]
[349591108,1737318621267,-599.99853218,0.00017,2]
[349591109,1737318621289,-950.71,0.00017565,2]
[349591110,1737318621311,-6638.29146782,0.00018612,2]
[349591117,1737318632229,-1835.70853218,0.00018612,2]
[349591118,1737318632238,-650.0,0.00019,2]
[349591119,1737318632247,-214.94834759,0.000193,2]
[349591120,1737318632256,-3211.21541089,0.000193,2]
[349591121,1737318632265,-201.58,0.00019423,2]
[349591122,1737318632274,-1000.0,0.00019444,2]
[349591123,1737318632283,-192.25,0.00019495,2]
[349591124,1737318632292,-882.94,0.00019505,2]
[349591125,1737318632301,-1500.0,0.00019531,2]
[349591126,1737318632310,-2751.0,0.00019533,2]
[349591127,1737318632318,-177.38,0.00019544,2]
[349591128,1737318632327,-1202.43,0.00019604,2]
[349591129,1737318632336,-500.0,0.0001974,2]
[349591130,1737318632345,-250.0,0.00019783,2]
[349591131,1737318632354,-950.71,0.00019829,2]
[349591132,1737318632362,-150.0,0.00019866,2]
[349591133,1737318632371,-172.56,0.00019866,2]
[349591134,1737318632380,-10000.0,0.0002,2]
[349591135,1737318632390,-432.74387396,0.0002,4]
[349591136,1737318632398,-549.66,0.00020001,2]
[349591137,1737318632407,-533.25926137,0.00020079,2]
[349591138,1737318632416,-184.6,0.00020116,2]
[349591139,1737318632428,-250.0,0.0002012,2]
[349591140,1737318632437,-555.0,0.00020122,2]
[349591141,1737318632446,-1399.661,0.00020123,2]
[349591142,1737318632455,-150.216,0.00020123,2]
[349591143,1737318632464,-250.0,0.00020123,2]
[349591144,1737318632473,-22609.04337443,0.00020123,2]
[349591145,1737318636156,-1290.95662557,0.00020123,2]
[349591146,1737318636166,-1928.8,0.00020179,30]
[349591147,1737318636178,-182.0361373,0.00020356,2]
[349591148,1737318636189,-115.9238627,0.00020356,2]
[349591149,1737318636198,-297.96,0.00020356,2]
[349591150,1737318636207,-150.99,0.00020378,2]
[349591151,1737318636216,-297.96,0.00020378,2]
[349591152,1737318636224,-110.8911373,0.00020378,2]
[349591153,1737318636235,-187.0688627,0.00020378,2]
[349591154,1737318636244,-355.8511373,0.00020686,2]
[349591155,1737318636262,-177.40812404,0.00020686,2]
[349591156,1737318636271,-482.0000903,0.00020784,2]
[349591157,1737318636280,-140.59178566,0.00020784,2]
[349591158,1737318636326,-179.40821434,0.00020784,2]
[349591159,1737318636336,-200.0,0.00020785,2]
[349591160,1737318636345,-150.0,0.00020788,2]
[349591161,1737318636354,-200.0,0.00020788,2]
[349591162,1737318636364,-450.69537355,0.000208,2]
[349591163,1737318636373,-413.67947266,0.00020813,2]
[349591164,1737318636383,-450.69537355,0.00020814,2]
[349591166,1737318636392,-320.0,0.00020831,2]
[349591168,1737318636401,-200.0,0.00020836,2]
[349591170,1737318636411,-8833.1729981,0.00020837,2]
[349591172,1737318636420,-450.69537355,0.00020839,2]
[349591174,1737318636432,-450.69537355,0.00020848,2]
[349591176,1737318636442,-200.0,0.00020852,2]
[349591177,1737318636451,-482.0000903,0.00020862,2]
[349591178,1737318636461,-200.0,0.00020866,2]
[349591179,1737318636470,-413.67947266,0.00020873,2]
[349591180,1737318636479,-482.0000903,0.00020879,2]
[349591181,1737318636489,-3341.24441805,0.0002088,2]
[349591182,1737318636500,-5491.92858005,0.0002088,2]
[349591183,1737318636509,-8833.1729981,0.00020883,2]
[349591184,1737318636518,-413.67947266,0.0002089,2]
[349591185,1737318636528,-320.0,0.00020892,2]
[349591186,1737318636537,-482.0000903,0.00020893,2]
[349591187,1737318636546,-1629.71885889,0.00020898,2]
[349591189,1737318636558,-350.71910277,0.00020898,2]
[349591191,1737318636567,-170.11478398,0.00020898,2]
[349591193,1737318636576,-4502.73366024,0.000209,2]
[349591195,1737318636587,-4937.87153976,0.000209,2]
[349591197,1737318636596,-207.37780281,0.000209,2]
[349591199,1737318636605,-450.69537355,0.00020901,2]
[349591201,1737318636614,-200.0,0.00020917,2]
[349591203,1737318636623,-200.0,0.00020918,2]
[349591205,1737318636632,-320.0,0.00020921,2]
[349591207,1737318636641,-200.0,0.00020924,2]
[349591209,1737318636650,-482.0000903,0.0002093,2]
[349591211,1737318636660,-8833.1729981,0.00020936,2]
[349591213,1737318636669,-413.67947266,0.00020943,2]
[349591215,1737318636683,-413.67947266,0.00020944,2]
[349591216,1737318636692,-320.0,0.00020945,2]
[349591219,1737318636702,-8833.1729981,0.00020948,2]
[349591220,1737318636711,-500.0,0.00020967,2]
[349591222,1737318636720,-161.82,0.00020992,2]
[349591229,1737318636898,-669.47883399,0.00020997,2]
[349591230,1737318636908,-500.0,0.00020998,2]
[349591231,1737318636917,-500.0,0.00020998,2]
[349591232,1737318636927,-440.93012697,0.00020998,2]
[349591233,1737318636937,-589.67,0.00020998,2]
[349591234,1737318636946,-500.0,0.00020998,2]
[349591235,1737318636954,-500.0,0.00020998,2]
[349591236,1737318636963,-500.0,0.00020998,2]
[349591237,1737318636973,-500.0,0.00020998,2]
[349591238,1737318636982,-500.0,0.00020998,2]
[349591239,1737318636991,-500.0,0.00020998,2]
[349591240,1737318637001,-500.0,0.00020998,2]
[349591241,1737318637010,-500.0,0.00020998,2]
[349591242,1737318637019,-500.0,0.00020998,2]
[349591243,1737318637028,-500.0,0.00020998,2]
[349591244,1737318637037,-500.0,0.00020998,2]
[349591245,1737318637046,-500.0,0.00020998,2]
[349591246,1737318637055,-500.0,0.00020998,2]
[349591247,1737318637065,-500.0,0.00020998,2]
[349591248,1737318637074,-500.0,0.00020998,2]
[349591249,1737318637083,-500.0,0.00020998,2]
[349591250,1737318637093,-500.0,0.00020998,2]
[349591251,1737318637102,-500.0,0.00020998,2]
[349591252,1737318637111,-500.0,0.00020998,2]
[349591253,1737318637119,-500.0,0.00020998,2]
[349591254,1737318637128,-500.0,0.00020998,2]
[349591255,1737318637137,-500.0,0.00020998,2]
[349591256,1737318637146,-500.0,0.00020998,2]
[349591257,1737318637155,-500.0,0.00020998,2]
[349591258,1737318637165,-501.42571693,0.00020998,2]
[349591259,1737318637174,-500.0,0.00020998,2]
[349591260,1737318637185,-500.0,0.00020998,2]
[349591261,1737318637194,-501.59343028,0.00020998,2]
[349591262,1737318637203,-500.0,0.00020998,2]
[349591263,1737318637212,-502.87469133,0.00020998,2]
[349591264,1737318637221,-500.0,0.00020998,2]
[349591265,1737318637230,-500.0,0.00020998,2]
[349591266,1737318637241,-500.0,0.00020998,2]
[349591267,1737318637250,-500.0,0.00020998,2]
[349591268,1737318637259,-500.0,0.00020998,2]
[349591269,1737318637268,-591.31,0.00020998,2]
[349591270,1737318637277,-500.0,0.00020998,2]
[349591271,1737318637286,-500.0,0.00020998,2]
[349591272,1737318637295,-500.0,0.00020998,2]
[349591273,1737318637304,-500.0,0.00020998,2]
[349591274,1737318637313,-496.31671102,0.00020998,2]
[349591275,1737318637322,-500.0,0.00020998,2]
[349591276,1737318637330,-500.0,0.00020998,2]
[349591277,1737318637339,-500.0,0.00020998,2]
[349591278,1737318637348,-500.0,0.00020998,2]
[349591279,1737318637357,-500.0,0.00020998,2]
[349591280,1737318637367,-500.0,0.00020998,2]
[349591281,1737318637376,-500.0,0.00020998,2]
[349591282,1737318637385,-500.0,0.00020998,2]
[349591283,1737318637394,-500.0,0.00020998,2]
[349591284,1737318637403,-500.0,0.00020998,2]
[349591285,1737318637413,-500.0,0.00020998,2]
[349591286,1737318637422,-500.0,0.00020998,2]
[349591287,1737318637433,-500.0,0.00020998,2]
[349591288,1737318637442,-500.0,0.00020998,2]
[349591289,1737318637451,-500.0,0.00020998,2]
[349591290,1737318637462,-500.0,0.00020998,2]
[349591291,1737318637471,-500.0,0.00020998,2]
[349591292,1737318637480,-500.0,0.00020998,2]
[349591293,1737318637490,-500.0,0.00020998,2]
[349591294,1737318637499,-500.0,0.00020998,2]
[349591295,1737318637508,-500.0,0.00020998,2]
[349591296,1737318637518,-571.52,0.00020998,2]
[349591297,1737318637527,-500.0,0.00020998,2]
[349591298,1737318637538,-500.0,0.00020998,2]
[349591299,1737318637547,-500.0,0.00020998,2]
[349591300,1737318637557,-326.37373864,0.00020998,2]
[349591301,1737318637566,-500.0,0.00020998,2]
[349591302,1737318637575,-500.0,0.00020998,2]
[349591303,1737318637584,-500.0,0.00020998,2]
[349591304,1737318637594,-500.0,0.00020998,2]
[349591305,1737318637603,-500.0,0.00020998,2]
[349591306,1737318637612,-605.25,0.00020998,2]
[349591307,1737318637621,-500.0,0.00020998,2]
[349591308,1737318637629,-500.39548995,0.00020998,2]
[349591309,1737318637638,-500.0,0.00020998,2]
[349591310,1737318637647,-500.0,0.00020998,2]
[349591311,1737318637656,-500.0,0.00020998,2]
[349591312,1737318637665,-500.0,0.00020998,2]
[349591313,1737318637675,-500.0,0.00020998,2]
[349591314,1737318637685,-500.0,0.00020998,2]
[349591315,1737318637694,-500.0,0.00020998,2]
[349591316,1737318637704,-542.80273505,0.00020998,2]
[349591317,1737318637713,-500.0,0.00020998,2]
[349591318,1737318637725,-500.0,0.00020998,2]
[349591319,1737318637734,-881.85,0.00020998,2]
[349591320,1737318637743,-500.0,0.00020998,2]
[349591321,1737318637752,-500.0,0.00020998,2]
[349591322,1737318637760,-500.0,0.00020998,2]
[349591323,1737318637769,-500.0,0.00020998,2]
[349591324,1737318637779,-500.0,0.00020998,2]
[349591325,1737318637788,-500.0,0.00020998,2]
[349591326,1737318637798,-500.0,0.00020998,2]
[349591327,1737318637808,-500.0,0.00020998,2]
[349591328,1737318637818,-500.0,0.00020998,2]
[349591329,1737318637828,-500.0,0.00020998,2]
[349591330,1737318637837,-500.0,0.00020998,2]
[349591331,1737318637846,-500.0,0.00020998,2]
[349591332,1737318637856,-500.0,0.00020998,2]
[349591333,1737318637865,-500.0,0.00020998,2]
[349591334,1737318637874,-500.0,0.00020998,2]
[349591335,1737318637887,-500.0,0.00020998,2]
[349591336,1737318637897,-500.0,0.00020998,2]
[349591337,1737318637906,-500.0,0.00020998,2]
[349591338,1737318637915,-500.0,0.00020998,2]
[349591339,1737318637924,-500.0,0.00020998,2]
[349591340,1737318637934,-500.0,0.00020998,2]
[349591341,1737318637943,-500.0,0.00020998,2]
[349591342,1737318637952,-500.0,0.00020998,2]
[349591343,1737318637961,-500.0,0.00020998,2]
[349591344,1737318637975,-500.0,0.00020998,2]
[349591345,1737318637990,-500.0,0.00020998,2]
[349591346,1737318638001,-500.0,0.00020998,2]
[349591347,1737318638011,-500.0,0.00020998,2]
[349591348,1737318638020,-500.0,0.00020998,2]
[349591349,1737318638029,-500.0,0.00020998,2]
[349591350,1737318638038,-500.0,0.00020998,2]
[349591351,1737318638047,-500.0,0.00020998,2]
[349591352,1737318638056,-500.0,0.00020998,2]
[349591353,1737318638065,-500.0,0.00020998,2]
[349591354,1737318638074,-500.0,0.00020998,2]
[349591355,1737318638083,-500.0,0.00020998,2]
[349591356,1737318638092,-500.0,0.00020998,2]
[349591357,1737318638101,-500.0,0.00020998,2]
[349591358,1737318638110,-500.0,0.00020998,2]
[349591359,1737318638119,-500.0,0.00020998,2]
[349591360,1737318638129,-626.32,0.00020998,2]
[349591361,1737318638138,-500.0,0.00020998,2]
[349591362,1737318638147,-500.0,0.00020998,2]
[349591363,1737318638156,-500.0,0.00020998,2]
[349591364,1737318638165,-554.04,0.00020998,2]
[349591365,1737318638178,-500.0,0.00020998,2]
[349591366,1737318638187,-500.0,0.00020998,2]
[349591367,1737318638197,-500.0,0.00020998,2]
[349591368,1737318638206,-500.0,0.00020998,2]
[349591369,1737318638215,-586.84,0.00020998,2]
[349591370,1737318638224,-706.03,0.00020998,2]
[349591371,1737318638233,-534.95,0.00020998,2]
[349591372,1737318638241,-500.0,0.00020998,2]
[349591373,1737318638250,-500.0,0.00020998,2]
[349591374,1737318638259,-150.0,0.00021,2]
[349591375,1737318638268,-8026.07788018,0.00021,5]
[349591376,1737318638276,-700.0,0.00021,2]
[349591377,1737318638285,-1980.4379616,0.00021009,2]
[349591378,1737318638294,-150.0,0.00021027,2]
[349591379,1737318638303,-3899.0,0.00021027,2]
[349591380,1737318638312,-1174.0,0.00021027,2]
[349591381,1737318638321,-2207.38112,0.0002106,2]
[349591382,1737318638330,-564.97,0.00021077,2]
[349591383,1737318638339,-957.79,0.00021077,2]
[349591384,1737318638348,-500.0,0.00021077,2]
[349591385,1737318638357,-500.0,0.00021077,2]
[349591386,1737318638365,-500.0,0.00021077,2]
[349591387,1737318638375,-500.0,0.00021077,2]
[349591388,1737318638384,-500.0,0.00021077,2]
[349591389,1737318638393,-271.83291851,0.00021077,2]
[349591390,1737318638402,-500.0,0.00021077,2]
[349591391,1737318638411,-500.0,0.00021077,2]
[349591392,1737318638419,-500.0,0.00021077,2]
[349591393,1737318638430,-500.0,0.00021077,2]
[349591394,1737318638439,-500.0,0.00021077,2]
[349591395,1737318638448,-500.0,0.00021077,2]
[349591396,1737318638457,-211.41189532,0.00021077,2]
[349591398,1737318638466,-500.0,0.00021077,2]
[349591400,1737318638475,-623.97407393,0.00021077,2]
[349591402,1737318638484,-500.0,0.00021077,2]
[349591404,1737318638494,-500.0,0.00021077,2]
[349591406,1737318638503,-500.0,0.00021077,2]
[349591408,1737318638512,-500.0,0.00021077,2]
[349591410,1737318638521,-500.0,0.00021077,2]
[349591412,1737318638531,-160.10165233,0.00021078,2]
[349591414,1737318638540,-32186.99441446,0.00021078,2]
[349591416,1737318638549,-1980.4379616,0.00021121,2]
[349591418,1737318638558,-150.0,0.00021158,2]
[349591420,1737318638567,-500.0,0.00021168,2]
[349591422,1737318638577,-500.0,0.00021168,2]
[349591424,1737318638586,-500.0,0.00021168,2]
[349591426,1737318638595,-500.0,0.00021168,2]
[349591428,1737318638604,-500.0,0.00021168,2]
[349591430,1737318638613,-1473.28,0.00021168,2]
[349591432,1737318638622,-500.0,0.00021168,2]
[349591434,1737318638630,-500.0,0.00021168,2]
[349591436,1737318638639,-500.0,0.00021168,2]
[349591438,1737318638649,-500.0,0.00021168,2]
[349591440,1737318638657,-500.0,0.00021168,2]
[349591442,1737318638666,-500.0,0.00021168,2]
[349591444,1737318638675,-500.0,0.00021168,2]
[349591446,1737318638686,-500.0,0.00021168,2]
[349591448,1737318638695,-500.0,0.00021168,2]
[349591450,1737318638704,-576.37,0.00021168,2]
[349591451,1737318638714,-500.0,0.00021168,2]
[349591452,1737318638723,-500.0,0.00021168,2]
[349591453,1737318638731,-512.24,0.00021168,2]
[349591454,1737318638740,-500.0,0.00021169,2]
[349591455,1737318638749,-500.0,0.00021169,2]
[349591456,1737318638757,-500.0,0.00021169,2]
[349591457,1737318638766,-926.7,0.00021169,2]
[349591458,1737318638775,-500.0,0.00021169,2]
[349591459,1737318638785,-500.0,0.00021169,2]
[349591461,1737318638794,-2621.323024,0.00021169,2]
[349591463,1737318638804,-500.0,0.00021169,2]
[349591464,1737318638817,-915.3,0.00021169,2]
[349591466,1737318638826,-1181.5,0.00021169,2]
[349591468,1737318638836,-154.239339,0.00021169,2]
[349591471,1737318638845,-900.16,0.00021169,2]
[349591472,1737318638855,-161.561958,0.00021169,2]
[349591474,1737318638865,-160.199226,0.00021169,2]
[349591477,1737318638876,-500.0,0.00021169,2]
[349591479,1737318638885,-500.0,0.00021169,2]
[349591481,1737318638896,-601.82,0.00021169,2]
[349591482,1737318638906,-1352.43,0.00021169,2]
[349591484,1737318638915,-500.0,0.00021169,2]
[349591486,1737318638924,-500.0,0.00021169,2]
[349591489,1737318638935,-500.0,0.00021169,2]
[349591491,1737318638945,-680.68,0.00021169,2]
[349591492,1737318638955,-500.0,0.00021169,2]
[349591495,1737318638965,-500.0,0.00021169,2]
[349591496,1737318638974,-795.39,0.00021169,2]
[349591499,1737318638985,-500.0,0.00021169,2]
[349591500,1737318638994,-989.88,0.00021169,2]
[349591502,1737318639003,-500.0,0.00021169,2]
[349591504,1737318639012,-500.0,0.00021169,2]
[349591506,1737318639022,-500.0,0.00021169,2]
[349591508,1737318639031,-500.0,0.00021169,2]
[349591510,1737318639040,-500.0,0.00021169,2]
[349591512,1737318639050,-500.0,0.00021169,2]
[349591514,1737318639059,-32186.99441439,0.00021169,2]
[349591516,1737318639068,-500.0,0.0002117,2]
[349591518,1737318639077,-500.0,0.0002117,2]
[349591520,1737318639087,-500.0,0.0002117,2]
[349591522,1737318639096,-526.79,0.0002117,2]
[349591524,1737318639106,-500.0,0.0002117,2]
[349591526,1737318639115,-500.0,0.0002117,2]
[349591528,1737318639125,-500.0,0.0002117,2]
[349591530,1737318639134,-500.0,0.0002117,2]
[349591532,1737318639143,-1309.07,0.0002117,2]
[349591534,1737318639152,-500.0,0.0002117,2]
[349591536,1737318639162,-500.0,0.0002117,2]
[349591538,1737318639172,-500.0,0.0002117,2]
[349591540,1737318639181,-500.0,0.0002117,2]
[349591542,1737318639191,-500.0,0.0002117,2]
[349591544,1737318639200,-500.0,0.0002117,2]
[349591546,1737318639209,-500.0,0.0002117,2]
[349591548,1737318639218,-500.0,0.0002117,2]
[349591550,1737318639227,-500.0,0.0002117,2]
[349591552,1737318639235,-500.0,0.0002117,2]
[349591554,1737318639244,-500.0,0.0002117,2]
[349591556,1737318639253,-500.0,0.0002117,2]
[349591558,1737318639262,-500.0,0.0002117,2]
[349591560,1737318639271,-500.0,0.0002117,2]
[349591562,1737318639281,-500.0,0.0002117,2]
[349591564,1737318639290,-500.0,0.0002117,2]
[349591566,1737318639299,-500.0,0.0002117,2]
[349591568,1737318639308,-500.0,0.0002117,2]
[349591570,1737318639317,-500.0,0.0002117,2]
[349591572,1737318639326,-500.0,0.0002117,2]
[349591574,1737318639336,-500.0,0.0002117,2]
[349591576,1737318639345,-500.0,0.0002117,2]
[349591578,1737318639354,-500.0,0.0002117,2]
[349591580,1737318639363,-500.0,0.0002117,2]
[349591582,1737318639373,-500.0,0.0002117,2]
[349591584,1737318639383,-500.0,0.0002117,2]
[349591586,1737318639394,-500.0,0.0002117,2]
[349591588,1737318639403,-500.0,0.0002117,2]
[349591590,1737318639413,-500.0,0.0002117,2]
[349591592,1737318639422,-500.0,0.0002117,2]
[349591594,1737318639432,-500.0,0.0002117,2]
[349591596,1737318639441,-271.09,0.0002117,2]
[349591598,1737318639450,-500.0,0.0002117,2]
[349591600,1737318639459,-500.0,0.0002117,2]
[349591602,1737318639468,-500.0,0.0002117,2]
[349591604,1737318639477,-500.0,0.0002117,2]
[349591606,1737318639486,-500.0,0.0002117,2]
[349591608,1737318639495,-500.0,0.0002117,2]
[349591610,1737318639504,-500.0,0.0002117,2]
[349591612,1737318639513,-500.0,0.0002117,2]
[349591614,1737318639522,-500.0,0.0002117,2]
[349591616,1737318639531,-500.0,0.0002117,2]
[349591618,1737318639540,-500.0,0.0002117,2]
[349591620,1737318639549,-500.0,0.0002117,2]
[349591622,1737318639558,-500.0,0.0002117,2]
[349591624,1737318639567,-562.5,0.0002117,2]
[349591626,1737318639576,-500.0,0.0002117,2]
[349591628,1737318639585,-500.0,0.0002117,2]
[349591630,1737318639594,-500.0,0.0002117,2]
[349591632,1737318639603,-500.0,0.0002117,2]
[349591634,1737318639613,-500.0,0.0002117,2]
[349591636,1737318639621,-500.0,0.0002117,2]
[349591638,1737318639630,-500.0,0.0002117,2]
[349591640,1737318639639,-500.0,0.0002117,2]
[349591642,1737318639648,-500.0,0.0002117,2]
[349591644,1737318639657,-500.0,0.0002117,2]
[349591646,1737318639666,-500.0,0.0002117,2]
[349591648,1737318639675,-500.0,0.0002117,2]
[349591650,1737318639686,-500.0,0.0002117,2]
[349591652,1737318639695,-509.55,0.0002117,2]
[349591654,1737318639704,-500.0,0.0002117,2]
[349591655,1737318639714,-500.0,0.0002117,2]
[349591658,1737318639724,-534.89624879,0.0002117,2]
[349591659,1737318639733,-989.05,0.0002117,2]
[349591661,1737318639743,-500.0,0.0002117,2]
[349591663,1737318639752,-998.11,0.0002117,2]
[349591665,1737318639762,-500.0,0.0002117,2]
[349591667,1737318639772,-500.0,0.0002117,2]
[349591670,1737318639782,-500.0,0.0002117,2]
[349591671,1737318639793,-197.94800476,0.0002117,2]
[349591673,1737318639805,-500.0,0.0002117,2]
[349591675,1737318639820,-500.0,0.0002117,2]
[349591677,1737318639830,-500.0,0.0002117,2]
[349591680,1737318639839,-500.0,0.0002117,2]
[349591681,1737318639849,-500.0,0.0002117,2]
[349591683,1737318639858,-993.41,0.0002117,2]
[349591685,1737318639868,-591.01,0.0002117,2]
[349591687,1737318639877,-500.0,0.0002117,2]
[349591689,1737318639887,-500.0,0.0002117,2]
[349591691,1737318639897,-500.0,0.0002117,2]
[349591693,1737318639907,-1429.35,0.0002117,2]
[349591695,1737318639917,-500.0,0.0002117,2]
[349591697,1737318639929,-500.0,0.0002117,2]
[349591699,1737318639939,-500.0,0.0002117,2]
[349591702,1737318639948,-500.0,0.0002117,2]
[349591704,1737318639957,-500.0,0.0002117,2]
[349591706,1737318639967,-500.0,0.0002117,2]
[349591708,1737318639976,-500.0,0.0002117,2]
[349591710,1737318639986,-500.0,0.0002117,2]
[349591712,1737318639996,-500.0,0.0002117,2]
[349591714,1737318640005,-245.8,0.0002117,2]
[349591716,1737318640015,-500.0,0.0002117,2]
[349591718,1737318640025,-1397.06,0.0002117,2]
[349591720,1737318640034,-500.0,0.0002117,2]
[349591722,1737318640043,-500.0,0.0002117,2]
[349591724,1737318640053,-500.0,0.0002117,2]
[349591726,1737318640063,-500.0,0.0002117,2]
[349591728,1737318640072,-500.0,0.0002117,2]
[349591730,1737318640082,-1400.15,0.0002117,2]
[349591732,1737318640091,-500.0,0.0002117,2]
[349591734,1737318640100,-1014.29,0.0002117,2]
[349591736,1737318640109,-1093.09,0.0002117,2]
[349591738,1737318640119,-500.0,0.0002117,2]
[349591740,1737318640129,-1393.14,0.0002117,2]
[349591742,1737318640138,-1420.57,0.0002117,2]
[349591744,1737318640147,-793.32,0.0002117,2]
[349591746,1737318640156,-500.0,0.0002117,2]
[349591748,1737318640166,-500.0,0.0002117,2]
[349591750,1737318640175,-500.0,0.0002117,2]
[349591757,1737318640314,-500.0,0.0002117,2]
[349591760,1737318640324,-500.0,0.0002117,2]
[349591761,1737318640333,-500.0,0.0002117,2]
[349591763,1737318640343,-500.0,0.0002117,2]
[349591765,1737318640352,-502.33941884,0.0002117,2]
[349591768,1737318640361,-1635.12,0.0002117,2]